Workbook

Sheet Лист1
A1: Школа | C1: МБОУ "Школа-интернат поселка Эгвекинот" | F1: Утвердил: | G1: должность | H1: директор
A2: Типовое примерное меню приготавливаемых блюд | G2: фамилия | H2: Швыркова Т.М.
A3: Возрастная категория | E3: 7-11 лет | G3: дата | H3: 28 | I3: 12 | J3: 2024
H4: день | I4: месяц | J4: год
A5: Неделя | B5: День недели | C5: Прием пищи | D5: Раздел меню | E5: Блюда | F5: Вес блюда, г | G5: Белки | H5: Жиры | I5: Углеводы | J5: Калорийность | K5: № рецептуры | L5: Цена
A6: 1 | B6: 1 | C6: Завтрак | D6: гор.блюдо | E6: Суп молочный с макаронными изделиями | F6: 150 | G6: 11.39 | H6: 8.29 | I6: 2.28 | J6: 145.35 | K6: 83 | L6: 26.6
D8: гор.напиток | E8: Чай с сахаром | F8: 180 | G8: 0.54 | H8: 0 | I8: 9.05 | J8: 34.2 | K8: 197 | L8: 3.26
D9: хлеб | E9: Хлеб пшеничный | F9: 50 | G9: 2.8 | H9: 0.5 | I9: 24.2 | J9: 117 | K9: 299.02 | L9: 7
D10: фрукты | E10: Фрукты | F10: 185 | G10: 0.4 | H10: 0.3 | I10: 10.3 | J10: 46 | K10: 351 | L10: 90.65
E11: Масло сливочное | F11: 15 | G11: 0.12 | H11: 6.78 | I11: 0.17 | J11: 50 | K11: 1 | L11: 11.25
E12: Джем | F12: 30 | G12: 0.15 | H12: 0 | I12: 21 | J12: 79.5 | K12: 291 | L12: 12
D13: итого | F13: =SUM(F6:F12) -> 610 | G13: =SUM(G6:G12) -> 15.4 | H13: =SUM(H6:H12) -> 15.87 | I13: =SUM(I6:I12) -> 67 | J13: =SUM(J6:J12) -> 472.05 | L13: =SUM(L8:L12) -> 124.16
A14: =A6 -> 1 | B14: =B6 -> 1 | C14: Завтрак 2 | D14: фрукты
E15: Напиток кофейный с молоком | F15: 180 | G15: 6.86 | H15: 2.7 | I15: 13.75 | J15: 89.9 | K15: 395 | L15: 21.94
E16: Конфеты шоколадные | F16: 30 | G16: 0.84 | H16: 5.2 | I16: 19.75 | J16: 146 | K16: 331 | L16: 22.5
D17: итого | F17: =SUM(F14:F16) -> 210 | G17: =SUM(G14:G16) -> 7.7 | H17: =SUM(H14:H16) -> 7.9 | I17: =SUM(I14:I16) -> 33.5 | J17: =SUM(J14:J16) -> 235.9 | L17: =SUM(L15:L16) -> 44.44
A18: =A6 -> 1 | B18: =B6 -> 1 | C18: Обед | D18: закуска | E18: Салат из белокочанной капусты | F18: 100 | G18: 2 | H18: 3.17 | I18: 7 | J18: 76 | K18: 26 | L18: 28.5
D19: 1 блюдо | E19: Суп с клецками | F19: 200 | G19: 2.59 | H19: 6.49 | I19: 12.9 | J19: 150.4 | K19: 64.01 | L19: 27.99
D20: 2 блюдо | E20: Тефтели мясные с рисом | F20: 255 | G20: 12.05 | H20: 13.04 | I20: 21.2 | J20: 197.83 | K20: 173.03 | L20: 71.31
D21: гарнир
D22: напиток | E22: Компот из свежих фруктов | F22: 180 | G22: 0.36 | H22: 0.05 | I22: 18.1 | J22: 76.77 | K22: 209 | L22: 22.23
D23: хлеб бел. | E23: Хлеб пшеничный | F23: 50 | G23: 2.8 | H23: 0.5 | I23: 24.2 | J23: 117 | K23: 299.02 | L23: 7
D24: хлеб черн. | E24: Хлеб ржаной | F24: 50 | G24: 3.3 | H24: 0.45 | I24: 17.1 | J24: 87 | K24: 299.03 | L24: 15
D27: итого | F27: =SUM(F18:F26) -> 835 | G27: =SUM(G18:G26) -> 23.1 | H27: =SUM(H18:H26) -> 23.7 | I27: =SUM(I18:I26) -> 100.5 | J27: =SUM(J18:J26) -> 705 | L27: =SUM(L22:L26) -> 44.23
A28: =A6 -> 1 | B28: =B6 -> 1 | C28: Полдник | D28: булочное
D29: напиток | E29: Чай из шиповника | F29: 180 | G29: 0.15 | H29: 0.06 | I29: 11.16 | J29: 48.6 | K29: 197.01 | L29: 7.66
E30: Плов сладкий из риса с изюмом | F30: 170 | G30: 11.4 | H30: 11.74 | I30: 39.1 | J30: 303.37 | K30: 275 | L30: 39.13
D32: итого | F32: =SUM(F28:F31) -> 350 | G32: =SUM(G28:G31) -> 11.55 | H32: =SUM(H28:H31) -> 11.8 | I32: =SUM(I28:I31) -> 50.26 | J32: =SUM(J28:J31) -> 351.97 | L32: =SUM(L29:L31) -> 46.79
A33: =A6 -> 1 | B33: =B6 -> 1 | C33: Ужин | D33: гор.блюдо | E33: Азу | F33: 250 | G33: 8.12 | H33: 14.74 | I33: 26.6 | J33: 264.8 | K33: 164 | L33: 89.58
D34: гарнир
D35: напиток | E35: Сок фруктовый | F35: 200 | G35: 2 | H35: 0.2 | I35: 5.8 | J35: 36 | K35: 185 | L35: 32
D36: хлеб | E36: Хлеб пшеничный | F36: 50 | G36: 3.3 | H36: 0.5 | I36: 24.2 | J36: 117 | K36: 299.02 | L36: 7
E37: Хлеб ржаной | F37: 30 | G37: 1.98 | H37: 0.36 | I37: 10.26 | J37: 52.2 | K37: 299.03 | L37: 9
D39: итого | F39: =SUM(F33:F38) -> 530 | G39: =SUM(G33:G38) -> 15.4 | H39: =SUM(H33:H38) -> 15.8 | I39: =SUM(I33:I38) -> 66.86 | J39: =SUM(J33:J38) -> 470 | L39: =SUM(L35:L38) -> 48
A40: =A6 -> 1 | B40: =B6 -> 1 | C40: Ужин 2 | D40: кисломол.
D41: булочное | E41: Печенье сахарное | F41: 20 | G41: =4.4/3*2 -> 2.933333333 | H41: 2.1 | I41: 6.7 | J41: =104.25/3*2 -> 69.5 | K41: 336 | L41: 12
D42: напиток | E42: Чай с молоком | F42: 180 | G42: 0.87 | H42: 1.8 | I42: 9.8 | J42: 47.5 | K42: 199 | L42: 7.46
D43: фрукты
D46: итого | F46: =SUM(F40:F45) -> 200 | G46: =SUM(G40:G45) -> 3.803333333 | H46: =SUM(H40:H45) -> 3.9 | I46: =SUM(I40:I45) -> 16.5 | J46: =SUM(J40:J45) -> 117 | L46: =SUM(L41:L45) -> 19.46
A47: =A6 -> 1 | B47: =B6 -> 1 | C47: Итого за день: | F47: =F13+F17+F27+F32+F39+F46 -> 2735 | G47: =G13+G17+G27+G32+G39+G46 -> 76.95333333 | H47: =H13+H17+H27+H32+H39+H46 -> 78.97 | I47: =I13+I17+I27+I32+I39+I46 -> 334.62 | J47: =J13+J17+J27+J32+J39+J46 -> 2351.92 | L47: 557.01
A48: 1 | B48: 2 | C48: Завтрак | D48: гор.блюдо | E48: Каша молочная геркулесовая вязкая | F48: 150 | G48: 9.6 | H48: 5.51 | I48: 16.38 | J48: 167.99 | K48: 93 | L48: 17.66
D50: гор.напиток | E50: Чай с лимоном | F50: 187 | G50: 0.04 | H50: 0 | I50: 13.46 | J50: 56.01 | K50: 198 | L50: 6.41
D51: хлеб | E51: Хлеб пшеничный | F51: 50 | G51: 2.8 | H51: 0.5 | I51: 24.2 | J51: 117 | K51: 299.02 | L51: 7
D52: фрукты | E52: Фрукты | F52: 185 | G52: 0.4 | H52: 0.4 | I52: 9.8 | J52: 45 | K52: 351 | L52: 73.08
E53: Сыр порционно | F53: 10 | G53: 2.5 | H53: 2.61 | I53: 2.99 | J53: 36 | K53: 5 | L53: 20
E54: Масло сливочное | F54: 15 | G54: 0.06 | H54: 6.78 | I54: 0.17 | J54: 50 | K54: 1 | L54: 11.25
D55: итого | F55: =SUM(F48:F54) -> 597 | G55: =SUM(G48:G54) -> 15.4 | H55: =SUM(H48:H54) -> 15.8 | I55: =SUM(I48:I54) -> 67 | J55: =SUM(J48:J54) -> 472 | L55: =SUM(L48:L54) -> 135.4
A56: =A48 -> 1 | B56: =B48 -> 2 | C56: Завтрак 2 | D56: фрукты
E57: Компот из свежезамороженной ягоды | F57: 180 | G57: 0.05 | H57: 0.1 | I57: 18.02 | J57: 55.93 | K57: 216.03 | L57: 16.99
E58: Пряники сырцовые | F58: 30 | G58: 7.65 | H58: 7.5 | I58: 15.6 | J58: 178 | K58: 310 | L58: 18
D59: итого | F59: =SUM(F56:F58) -> 210 | G59: =SUM(G56:G58) -> 7.7 | H59: =SUM(H56:H58) -> 7.6 | I59: =SUM(I56:I58) -> 33.62 | J59: =SUM(J56:J58) -> 233.93 | L59: =SUM(L56:L58) -> 34.99
A60: =A48 -> 1 | B60: =B48 -> 2 | C60: Обед | D60: закуска | E60: Салат из квашенной капусты | F60: 100 | G60: 1.61 | H60: 2 | I60: 1 | J60: 21 | K60: 328 | L60: 43.14
D61: 1 блюдо | E61: Рассольник на мясном бульоне | F61: 200 | G61: 2.29 | H61: 5.49 | I61: 14.01 | J61: 106.04 | K61: 57 | L61: 36.38
D62: 2 блюдо | E62: Рыба лососевая тушеная под маринадом | F62: 100 | G62: 10.99 | H62: 10.33 | I62: 2.97 | J62: 129.35 | K62: 44 | L62: 95.36
D63: гарнир | E63: Картофельное пюре | F63: 150 | G63: 1.89 | H63: 4.8 | I63: 16.5 | J63: 145.16 | K63: 226 | L63: 28.52
D64: напиток | E64: Компот из свежезамороженной ягоды | F64: 180 | G64: =0.24/20*18 -> 0.216 | H64: 0.13 | I64: 24.72 | J64: 99.45 | K64: 216.05 | L64: 21.85
D65: хлеб бел. | E65: Хлеб пшеничный | F65: 50 | G65: 2.8 | H65: 0.5 | I65: 24.2 | J65: 117 | K65: 299.02 | L65: 7
D66: хлеб черн. | E66: Хлеб ржаной | F66: 50 | G66: 3.3 | H66: 0.45 | I66: 17.1 | J66: 87 | K66: 299.03 | L66: 15
D69: итого | F69: =SUM(F60:F68) -> 830 | G69: =SUM(G60:G68) -> 23.096 | H69: =SUM(H60:H68) -> 23.7 | I69: =SUM(I60:I68) -> 100.5 | J69: =SUM(J60:J68) -> 705 | L69: =SUM(L60:L68) -> 247.25
A70: =A48 -> 1 | B70: =B48 -> 2 | C70: Полдник | D70: булочное | E70: Сырники с молоком сгущеным | F70: 135 | G70: 10.9 | H70: 11.7 | I70: 33.5 | J70: 316.68 | K70: 112.02 | L70: 60.11
D71: напиток | E71: Чай с мятой | F71: 180 | G71: 0.6 | H71: 0 | I71: 16.8 | J71: 35.32 | K71: 197.01 | L71: 5.5
D74: итого | F74: =SUM(F70:F73) -> 315 | G74: =SUM(G70:G73) -> 11.5 | H74: =SUM(H70:H73) -> 11.7 | I74: =SUM(I70:I73) -> 50.3 | J74: =SUM(J70:J73) -> 352 | L74: =SUM(L70:L73) -> 65.61
A75: =A48 -> 1 | B75: =B48 -> 2 | C75: Ужин | D75: гор.блюдо | E75: Пельмени промышленного производства | F75: 170 | G75: 8.97 | H75: 14.78 | I75: 20.51 | J75: 252.56 | K75: 313 | L75: 81.92
D76: гарнир
D77: напиток | E77: Чай с сахаром | F77: 180 | G77: 0.54 | H77: 0 | I77: 9.05 | J77: 34.2 | K77: 197 | L77: 3.26
D78: хлеб | E78: Хлеб пшеничный | F78: 50 | G78: 2.8 | H78: 0.5 | I78: 24.2 | J78: 117 | K78: 299.02 | L78: 7
E79: Помидоры св. порционно | F79: 100 | G79: =1.08/10*8 -> 0.864 | H79: =0.2/10*8 -> 0.16 | I79: =3.73/10*8 -> 2.984 | J79: =22.55/10*8 -> 18.04 | K79: 0.04 | L79: 35.14
E80: Хлеб ржаной | F80: 30 | G80: 1.98 | H80: 0.36 | I80: 10.26 | J80: 52.2 | K80: 299.03 | L80: 9
D81: итого | F81: =SUM(F75:F80) -> 530 | G81: =SUM(G75:G80) -> 15.154 | H81: =SUM(H75:H80) -> 15.8 | I81: =SUM(I75:I80) -> 67.004 | J81: =SUM(J75:J80) -> 474 | L81: =SUM(L75:L80) -> 136.32
A82: =A48 -> 1 | B82: =B48 -> 2 | C82: Ужин 2 | D82: кисломол. | E82: Кефир с сахаром | F82: 210 | G82: 3.8 | H82: 3.9 | I82: 17 | J82: 118 | K82: 196 | L82: 37.4
D83: булочное
D84: напиток
D85: фрукты
D88: итого | F88: =SUM(F82:F87) -> 210 | G88: =SUM(G82:G87) -> 3.8 | H88: =SUM(H82:H87) -> 3.9 | I88: =SUM(I82:I87) -> 17 | J88: =SUM(J82:J87) -> 118 | L88: =SUM(L82:L87) -> 37.4
A89: =A48 -> 1 | B89: =B48 -> 2 | C89: Итого за день: | F89: =F55+F59+F69+F74+F81+F88 -> 2692 | G89: =G55+G59+G69+G74+G81+G88 -> 76.65 | H89: =H55+H59+H69+H74+H81+H88 -> 78.5 | I89: =I55+I59+I69+I74+I81+I88 -> 335.424 | J89: =J55+J59+J69+J74+J81+J88 -> 2354.93 | L89: =L55+L59+L69+L74+L81+L88 -> 656.97
A90: 1 | B90: 3 | C90: Завтрак | D90: гор.блюдо | E90: Каша молочная манная | F90: 150 | G90: 5.51 | H90: 1.6 | I90: 24.52 | J90: 150.64 | K90: 93 | L90: 18.45
D92: гор.напиток | E92: Чай с молоком | F92: 180 | G92: =1.3/20*18 -> 1.17 | H92: =0.8/20*18 -> 0.72 | I92: =11.24/20*18 -> 10.116 | J92: =52.4/20*18 -> 47.16 | K92: 199 | L92: 7.46
D93: хлеб | E93: Хлеб пшеничный | F93: 50 | G93: 2.8 | H93: 0.5 | I93: 24.2 | J93: 117 | K93: 299.02 | L93: 7
D94: фрукты | E94: Фрукты | F94: 185 | G94: 1 | H94: 0.0001 | I94: 8 | J94: 43 | K94: 317 | L94: 90.65
E95: Яйцо отварное | F95: 40 | G95: 4.8 | H95: 6.2 | I95: 0 | J95: 63.2 | K95: 363 | L95: 20
E96: Масло сливочное | F96: 15 | G96: 0.12 | H96: 6.78 | I96: 0.17 | J96: 50 | K96: 1 | L96: 9.75
D97: итого | F97: =SUM(F90:F96) -> 620 | G97: =SUM(G90:G96) -> 15.4 | H97: =SUM(H90:H96) -> 15.8001 | I97: =SUM(I90:I96) -> 67.006 | J97: =SUM(J90:J96) -> 471 | L97: =SUM(L90:L96) -> 153.31
A98: =A90 -> 1 | B98: =B90 -> 3 | C98: Завтрак 2 | D98: фрукты
E99: Сок фруктовый | F99: 200 | G99: 4.77 | H99: 3.93 | I99: =25/20*18 -> 22.5 | J99: 166 | K99: 189.04 | L99: 32
E100: Печенье сахарное | F100: 30 | G100: =4.4/3*2 -> 2.933333333 | H100: =5.8/3*2 -> 3.866666667 | I100: 11.17 | J100: =104.25/3*2 -> 69.5 | K100: 336 | L100: 12
D101: итого | F101: =SUM(F98:F100) -> 230 | G101: =SUM(G98:G100) -> 7.703333333 | H101: =SUM(H98:H100) -> 7.796666667 | I101: =SUM(I98:I100) -> 33.67 | J101: =SUM(J98:J100) -> 235.5 | L101: =SUM(L98:L100) -> 44
A102: =A90 -> 1 | B102: =B90 -> 3 | C102: Обед | D102: закуска | E102: Салат из свеклы с черносливом и орехами | F102: 100 | G102: 1.38 | H102: 6.14 | I102: 12.4 | J102: 109.75 | K102: 28 | L102: 47.04
D103: 1 блюдо | E103: Щи из св.капусты с картофелем на мясном бульоне | F103: 210 | G103: 6.54 | H103: =6.52/5*4 -> 5.216 | I103: =9.02/5*4 -> 7.216 | J103: =145.23/5*4 -> 116.184 | K103: 46 | L103: 47.08
D104: 2 блюдо | E104: Печень по-строган. с кашей гречневой | F104: 250 | G104: 8.79 | H104: 11.3 | I104: 20.31 | J104: 196.77 | K104: 171.01 | L104: 71.91
D105: гарнир
D106: напиток | E106: Компот из сухофруктов | F106: 180 | G106: 0.29 | H106: 0.0001 | I106: 19.49 | J106: 78.3 | K106: 210 | L106: 13.3
D107: хлеб бел. | E107: Хлеб пшеничный | F107: 50 | G107: 2.8 | H107: 0.5 | I107: 24.2 | J107: 117 | K107: 299.02 | L107: 7
D108: хлеб черн. | E108: Хлеб ржаной | F108: 50 | G108: 3.3 | H108: 0.45 | I108: 17.1 | J108: 87 | K108: 299.03 | L108: 15
D111: итого | F111: =SUM(F102:F110) -> 840 | G111: =SUM(G102:G110) -> 23.1 | H111: =SUM(H102:H110) -> 23.6061 | I111: =SUM(I102:I110) -> 100.716 | J111: =SUM(J102:J110) -> 705.004 | L111: =SUM(L102:L110) -> 201.33
A112: =A90 -> 1 | B112: =B90 -> 3 | C112: Полдник | D112: булочное
D113: напиток | E113: Чай с сахаром | F113: 180 | G113: 0.54 | H113: 0 | I113: 9.05 | J113: 34.2 | K113: 197 | L113: 3.26
E114: Винегрет овощной | F114: 130 | G114: 8.1 | H114: 11.5 | I114: 41.2 | J114: 234.5 | K114: 34 | L114: 60.3
E115: Хлеб пшеничный | F115: 35 | G115: 2.77 | H115: 0.35 | I115: 16.91 | J115: 83.3 | K115: 277 | L115: 4.9
D116: итого | F116: =SUM(F112:F115) -> 345 | G116: =SUM(G112:G115) -> 11.41 | H116: =SUM(H112:H115) -> 11.85 | I116: =SUM(I112:I115) -> 67.16 | J116: =SUM(J112:J115) -> 352 | L116: =SUM(L112:L115) -> 68.46
A117: =A90 -> 1 | B117: =B90 -> 3 | C117: Ужин | D117: гор.блюдо | E117: Окорочка куриные запеченные в дух. шкафу | F117: 100 | G117: 4.72 | H117: 9.85 | I117: 5.1 | J117: 163 | K117: 35 | L117: 42.51
D118: гарнир | E118: Картофель и овощи тушеные в соусе | F118: 120 | G118: 5.02 | H118: 4.47 | I118: 16.95 | J118: 131.19 | K118: 128 | L118: 31.08
D119: напиток | E119: Чай с мятой | F119: 180 | G119: 0.24 | H119: 0 | I119: 9.054 | J119: 34.11 | K119: 197.01 | L119: 5.5
D120: хлеб | E120: Хлеб пшеничный | F120: 50 | G120: 2.8 | H120: 0.5 | I120: 24.2 | J120: 117 | K120: 299.02 | L120: 7
E121: Огурцы св. порционно | F121: 100 | G121: 0.64 | H121: 0.34 | I121: 2.08 | J121: 11.2 | K121: 0.03 | L121: 42.51
E122: Хлеб ржаной | F122: 30 | G122: 1.98 | H122: 0.36 | I122: 10.26 | J122: 52.2 | K122: 299.03 | L122: 10
D123: итого | F123: =SUM(F117:F122) -> 580 | G123: =SUM(G117:G122) -> 15.4 | H123: =SUM(H117:H122) -> 15.52 | I123: =SUM(I117:I122) -> 67.644 | J123: =SUM(J117:J122) -> 474.59 | L123: =SUM(L117:L122) -> 138.6
A124: =A90 -> 1 | B124: =B90 -> 3 | C124: Ужин 2 | D124: кисломол.
D125: булочное | E125: Сушки | F125: 20 | G125: 1.4 | H125: 0.7 | I125: 12.84 | J125: 66 | K125: 335 | L125: 8
D126: напиток | E126: Молоко | F126: 180 | G126: 2.5 | H126: 3.2 | I126: 3.76 | J126: 51.4 | K126: 287 | L126: 25.2
D127: фрукты
D130: итого | F130: =SUM(F124:F129) -> 200 | G130: =SUM(G124:G129) -> 3.9 | H130: =SUM(H124:H129) -> 3.9 | I130: =SUM(I124:I129) -> 16.6 | J130: =SUM(J124:J129) -> 117.4 | L130: =SUM(L124:L129) -> 33.2
A131: =A90 -> 1 | B131: =B90 -> 3 | C131: Итого за день: | F131: =F97+F101+F111+F116+F123+F130 -> 2815 | G131: =G97+G101+G111+G116+G123+G130 -> 76.91333333 | H131: =H97+H101+H111+H116+H123+H130 -> 78.47286667 | I131: =I97+I101+I111+I116+I123+I130 -> 352.796 | J131: =J97+J101+J111+J116+J123+J130 -> 2355.494 | L131: =L97+L101+L111+L116+L123+L130 -> 638.9
A132: 1 | B132: 4 | C132: Завтрак | D132: гор.блюдо | E132: Каша ячневая с молоком | F132: 150 | G132: =2.72/4*3 -> 2.04 | H132: 7.18 | I132: =22.8/4*3 -> 17.1 | J132: 145.81 | K132: 272 | L132: 17.66
D134: гор.напиток | E134: Чай из шиповника | F134: 180 | G134: 0.15 | H134: 0.06 | I134: 11.16 | J134: 48.6 | K134: 197.01 | L134: 7.66
D135: хлеб | E135: Хлеб пшеничный | F135: 50 | G135: 2.8 | H135: 0.5 | I135: 24.2 | J135: 117 | K135: 299.02 | L135: 7
D136: фрукты | E136: Консервированные фрукты | F136: 100 | G136: 0.38 | I136: 13.7 | J136: 29.5 | K136: 207 | L136: 29.41
E137: Куриная грудка отварная | F137: 70 | G137: 9.91 | H137: 1.33 | I137: 0.28 | J137: 79.1 | K137: 286 | L137: 56.31
E138: Масло сливочное | F138: 15 | G138: 0.12 | H138: 6.78 | I138: 0.2 | J138: 50 | K138: 1 | L138: 11.25
D139: итого | F139: =SUM(F132:F138) -> 565 | G139: =SUM(G132:G138) -> 15.4 | H139: =SUM(H132:H138) -> 15.85 | I139: =SUM(I132:I138) -> 66.64 | J139: =SUM(J132:J138) -> 470.01 | L139: =SUM(L132:L138) -> 129.29
A140: =A132 -> 1 | B140: =B132 -> 4 | C140: Завтрак 2 | D140: фрукты
E141: Какао с молоком | F141: 180 | G141: =4.31/20*18 -> 3.879 | H141: =3.4/20*18 -> 3.06 | I141: 10.5 | J141: 90.4 | K141: 308 | L141: 14.23
E142: Печенье сахарное | F142: 20 | G142: 3.82 | H142: 4.74 | I142: 23.1 | J142: 144.6 | K142: 330 | L142: 12
D143: итого | F143: =SUM(F140:F142) -> 200 | G143: =SUM(G140:G142) -> 7.699 | H143: =SUM(H140:H142) -> 7.8 | I143: =SUM(I140:I142) -> 33.6 | J143: =SUM(J140:J142) -> 235 | L143: =SUM(L140:L142) -> 26.23
A144: =A132 -> 1 | B144: =B132 -> 4 | C144: Обед | D144: закуска | E144: Кукуруза конс. | F144: 100 | G144: 1.46 | H144: 6.63 | I144: 3.24 | J144: 45.93 | K144: 292.01 | L144: 27.29
D145: 1 блюдо | E145: Суп из рыбных консервов | F145: 200 | G145: =2.91/5*4 -> 2.328 | H145: 4.03 | I145: 10.05 | J145: =169/5*4 -> 135.2 | K145: 76.02 | L145: 70.84
D146: 2 блюдо | E146: Запеканка картофельная с мясом(политая маслом) | F146: 250 | G146: 12.98 | H146: 11.9 | I146: 33.84 | J146: 263.94 | K146: 179 | L146: 86.03
D147: гарнир
D148: напиток | E148: Компот из свежезамороженной ягоды | F148: 180 | G148: 0.21 | H148: 0.1 | I148: 12.07 | J148: 55.93 | K148: 216.03 | L148: 16.99
D149: хлеб бел. | E149: Хлеб пшеничный | F149: 50 | G149: 2.8 | H149: 0.5 | I149: 24.2 | J149: 117 | K149: 299.02 | L149: 7
D150: хлеб черн. | E150: Хлеб ржаной | F150: 50 | G150: 3.3 | H150: 0.45 | I150: 17.1 | J150: 87 | K150: 299.03 | L150: 14
D153: итого | F153: =SUM(F144:F152) -> 830 | G153: =SUM(G144:G152) -> 23.078 | H153: =SUM(H144:H152) -> 23.61 | I153: =SUM(I144:I152) -> 100.5 | J153: =SUM(J144:J152) -> 705 | L153: =SUM(L144:L152) -> 222.15
A154: =A132 -> 1 | B154: =B132 -> 4 | C154: Полдник | D154: булочное | E154: Пирожки печеные с творогом | F154: 135 | G154: 10.64 | H154: 2.6 | I154: 16.8 | J154: 223.64 | K154: 269.01 | L154: 43.51
D155: напиток | E155: Кисель плодово-ягодный из концентрата | F155: 180 | G155: 0.02 | H155: 0 | I155: 10.05 | J155: 72.07 | K155: 220 | L155: 32
E156: Конфеты шоколадные | F156: 30 | G156: 0.84 | H156: 9.2 | I156: 23.2 | J156: 57 | K156: 331 | L156: 22.5
D158: итого | F158: =SUM(F154:F157) -> 345 | G158: =SUM(G154:G157) -> 11.5 | H158: =SUM(H154:H157) -> 11.8 | I158: =SUM(I154:I157) -> 50.05 | J158: =SUM(J154:J157) -> 352.71 | L158: =SUM(L154:L157) -> 98.01
A159: =A132 -> 1 | B159: =B132 -> 4 | C159: Ужин | D159: гор.блюдо | E159: Зразы рубленные | F159: 130 | G159: 8.48 | H159: 10.7 | I159: 15.6 | J159: 173.26 | K159: 175 | L159: 53.6
D160: гарнир
D161: напиток | E161: Чай с лимоном | F161: 187 | G161: 0.04 | H161: 0 | I161: 13.46 | J161: 56.01 | K161: 198 | L161: 6.41
D162: хлеб | E162: Хлеб пшеничный | F162: 50 | G162: 3.3 | H162: 0.5 | I162: 24.2 | J162: 117 | K162: 299.02 | L162: 7
E163: Салат витаминный | F163: 120 | G163: 1.59 | H163: 3.99 | I163: 3.76 | J163: 72.8 | K163: 11 | L163: 58.41
E164: Хлеб ржаной | F164: 30 | G164: 1.98 | H164: 0.36 | I164: 10.26 | J164: 52.2 | K164: 299.03 | L164: 9
D165: итого | F165: =SUM(F159:F164) -> 517 | G165: =SUM(G159:G164) -> 15.39 | H165: =SUM(H159:H164) -> 15.55 | I165: =SUM(I159:I164) -> 67.28 | J165: =SUM(J159:J164) -> 471.27 | L165: =SUM(L159:L164) -> 134.42
A166: =A132 -> 1 | B166: =B132 -> 4 | C166: Ужин 2 | D166: кисломол.
D167: булочное | E167: Печенье затяжное | F167: 20 | G167: 3.23 | H167: =5.8/3*2 -> 3.866666667 | I167: 8.9 | J167: 83.5 | K167: 336.02 | L167: 8
D168: напиток | E168: Чай с сахаром | F168: 180 | G168: 0.54 | H168: 0 | I168: 9.05 | J168: 34.2 | K168: 197 | L168: 3.26
D169: фрукты
D172: итого | F172: =SUM(F166:F171) -> 200 | G172: =SUM(G166:G171) -> 3.77 | H172: =SUM(H166:H171) -> 3.866666667 | I172: =SUM(I166:I171) -> 17.95 | J172: =SUM(J166:J171) -> 117.7 | L172: =SUM(L166:L171) -> 11.26
A173: =A132 -> 1 | B173: =B132 -> 4 | C173: Итого за день: | F173: =F139+F143+F153+F158+F165+F172 -> 2657 | G173: =G139+G143+G153+G158+G165+G172 -> 76.837 | H173: =H139+H143+H153+H158+H165+H172 -> 78.47666667 | I173: =I139+I143+I153+I158+I165+I172 -> 336.02 | J173: =J139+J143+J153+J158+J165+J172 -> 2351.69 | L173: =L139+L143+L153+L158+L165+L172 -> 621.36
A174: 1 | B174: 5 | C174: Завтрак | D174: гор.блюдо | E174: Каша пшеничная молочная | F174: 150 | G174: 11.39 | H174: 8.3 | I174: 3.1 | J174: 145.3 | K174: 90.01 | L174: 17.66
D176: гор.напиток | E176: Чай с сахаром | F176: 180 | G176: 0.54 | H176: 0 | I176: 9.05 | J176: 34.2 | K176: 197 | L176: 3.26
D177: хлеб | E177: Хлеб пшеничный | F177: 50 | G177: 2.8 | H177: 0.5 | I177: 24.2 | J177: 117 | K177: 299.02 | L177: 7
D178: фрукты | E178: Фрукты (груши) | F178: 185 | G178: 0.4 | H178: 0.3 | I178: 10.3 | J178: 46 | K178: 351 | L178: 90.65
E179: Джем | F179: 30 | G179: 0.15 | H179: 0 | I179: 21 | J179: 79.5 | K179: 291 | L179: 12
E180: Масло сливочное | F180: 15 | G180: 0.12 | H180: 6.78 | I180: 0.17 | J180: 50 | K180: 1 | L180: 9.75
D181: итого | F181: =SUM(F174:F180) -> 610 | G181: =SUM(G174:G180) -> 15.4 | H181: =SUM(H174:H180) -> 15.88 | I181: =SUM(I174:I180) -> 67.82 | J181: =SUM(J174:J180) -> 472 | L181: =SUM(L174:L180) -> 140.32
A182: =A174 -> 1 | B182: =B174 -> 5 | C182: Завтрак 2 | D182: фрукты
E183: Напиток кофейный с молоком | F183: 180 | G183: 3.51 | H183: 2.7 | I183: 13.75 | J183: 89.9 | K183: 395 | L183: 21.94
E184: Вафли | F184: 30 | G184: 4.17 | H184: 5.1 | I184: 20.01 | J184: 144.69 | K184: 300 | L184: 16.5
D185: итого | F185: =SUM(F182:F184) -> 210 | G185: =SUM(G182:G184) -> 7.68 | H185: =SUM(H182:H184) -> 7.8 | I185: =SUM(I182:I184) -> 33.76 | J185: =SUM(J182:J184) -> 234.59 | L185: =SUM(L182:L184) -> 38.44
A186: =A174 -> 1 | B186: =B174 -> 5 | C186: Обед | D186: закуска | E186: Зеленый горошек конс. с луком и раст. маслом | F186: 100 | G186: 1, 48 | H186: =2.5/10*8 -> 2 | I186: 2.2 | J186: =52/10*8 -> 41.6 | K186: 292 | L186: 37.92
D187: 1 блюдо | E187: Суп с рисом и курицей | F187: 200 | G187: 4.02 | H187: 6.49 | I187: 4.4 | J187: 89.6 | K187: 79.01 | L187: 25.5
D188: 2 блюдо | E188: Биточки паровые | F188: 90 | G188: 5.78 | H188: 10.9 | I188: 6.87 | J188: 129.6 | K188: 172.03 | L188: 56.51
D189: гарнир | E189: Макаронные изделия отварные | F189: 150 | G189: =7.07/18*15 -> 5.891666667 | H189: =3.73/18*15 -> 3.108333333 | I189: 22.9 | J189: 163.2 | K189: 229 | L189: 8.96
D190: напиток | E190: Компот из свежезамороженной ягоды | F190: 180 | G190: =0.24/20*18 -> 0.216 | H190: 0.13 | I190: 15.8 | J190: =85.3/20*18 -> 76.77 | K190: 210 | L190: 21.85
D191: хлеб бел. | E191: Хлеб пшеничный | F191: 50 | G191: 2.8 | H191: 0.5 | I191: 24.2 | J191: 117 | K191: 299.02 | L191: 7
D192: хлеб черн. | E192: Хлеб ржаной | F192: 50 | G192: 3.3 | H192: 0.45 | I192: 17.1 | J192: 87 | K192: 299.03 | L192: 15
D195: итого | F195: =SUM(F186:F194) -> 820 | G195: =SUM(G186:G194) -> 22.00766667 | H195: =SUM(H186:H194) -> 23.57833333 | I195: =SUM(I186:I194) -> 93.47 | J195: =SUM(J186:J194) -> 704.77 | L195: =SUM(L186:L194) -> 172.74
A196: =A174 -> 1 | B196: =B174 -> 5 | C196: Полдник | D196: булочное | E196: Булочка по-домашнему | F196: 100 | G196: 11.35 | H196: 11.9 | I196: 39 | J196: 303.4 | K196: 304 | L196: 15.64
D197: напиток | E197: Чай из шиповника | F197: 180 | G197: 0.15 | H197: 0.06 | I197: 11.16 | J197: 48.6 | K197: 197.01 | L197: 7.66
D200: итого | F200: =SUM(F196:F199) -> 280 | G200: =SUM(G196:G199) -> 11.5 | H200: =SUM(H196:H199) -> 11.96 | I200: =SUM(I196:I199) -> 50.16 | J200: =SUM(J196:J199) -> 352 | L200: =SUM(L196:L199) -> 23.3
A201: =A174 -> 1 | B201: =B174 -> 5 | C201: Ужин | D201: гор.блюдо | E201: Капуста тушеная с тушеной говядиной | F201: 240 | G201: 8.8 | H201: 14.67 | I201: 26.74 | J201: 264.9 | K201: 161.04 | L201: 139.78
D202: гарнир
D203: напиток | E203: Сок фруктовый | F203: 200 | G203: 2 | H203: 0.2 | I203: 5.8 | J203: 36 | K203: 185 | L203: 32
D204: хлеб | E204: Хлеб пшеничный | F204: 50 | G204: 2.8 | H204: 0.5 | I204: 24.2 | J204: 117 | K204: 299.02 | L204: 7
E205: Хлеб ржаной | F205: 30 | G205: 1.98 | H205: 0.36 | I205: 10.26 | J205: 52.2 | K205: 299.03 | L205: 9
D207: итого | F207: =SUM(F201:F206) -> 520 | G207: =SUM(G201:G206) -> 15.58 | H207: =SUM(H201:H206) -> 15.73 | I207: =SUM(I201:I206) -> 67 | J207: =SUM(J201:J206) -> 470.1 | L207: =SUM(L201:L206) -> 187.78
A208: =A174 -> 1 | B208: =B174 -> 5 | C208: Ужин 2 | D208: кисломол.
D209: булочное | E209: Печенье сахарное | F209: 20 | G209: =4.4/3*2 -> 2.933333333 | H209: 2.1 | I209: 6.7 | J209: =104.25/3*2 -> 69.5 | K209: 336 | L209: 8
D210: напиток | E210: Чай с молоком | F210: 180 | G210: 0.87 | H210: 1.8 | I210: 9.8 | J210: 47.5 | K210: 199 | L210: 7.46
D211: фрукты
D214: итого | F214: =SUM(F208:F213) -> 200 | G214: =SUM(G208:G213) -> 3.803333333 | H214: =SUM(H208:H213) -> 3.9 | I214: =SUM(I208:I213) -> 16.5 | J214: =SUM(J208:J213) -> 117 | L214: =SUM(L208:L213) -> 15.46
A215: =A174 -> 1 | B215: =B174 -> 5 | C215: Итого за день: | F215: =F181+F185+F195+F200+F207+F214 -> 2640 | G215: =G181+G185+G195+G200+G207+G214 -> 75.971 | H215: =H181+H185+H195+H200+H207+H214 -> 78.84833333 | I215: =I181+I185+I195+I200+I207+I214 -> 328.71 | J215: =J181+J185+J195+J200+J207+J214 -> 2350.46 | L215: =L181+L185+L195+L200+L207+L214 -> 578.04
A216: 1 | B216: 6 | C216: Завтрак | D216: гор.блюдо | E216: Каша с крупой гречневой на молоке | F216: 150 | G216: 9.6 | H216: 5.51 | I216: 16.38 | J216: 165.99 | K216: 346 | L216: 18.66
D218: гор.напиток | E218: Чай с лимоном | F218: 187 | G218: 0.04 | H218: 0 | I218: 13.46 | J218: 56.01 | K218: 198 | L218: 6.41
D219: хлеб | E219: Хлеб пшеничный | F219: 50 | G219: 2.8 | H219: 0.5 | I219: 24.2 | J219: 117 | K219: 299.02 | L219: 7
D220: фрукты | E220: Фрукты | F220: 185 | G220: 0.4 | H220: 0.4 | I220: 9.8 | J220: 45 | K220: 351 | L220: 73.075
E221: Сыр порционно | F221: 10 | G221: 2.5 | H221: 2.61 | I221: 2.99 | J221: 36 | K221: 5 | L221: 20
E222: Масло сливочное | F222: 15 | G222: 0.06 | H222: 6.78 | I222: 0.17 | J222: 50 | K222: 1 | L222: 11.25
D223: итого | F223: =SUM(F216:F222) -> 597 | G223: =SUM(G216:G222) -> 15.4 | H223: =SUM(H216:H222) -> 15.8 | I223: =SUM(I216:I222) -> 67 | J223: =SUM(J216:J222) -> 470 | L223: =SUM(L216:L222) -> 136.395
A224: =A216 -> 1 | B224: =B216 -> 6 | C224: Завтрак 2 | D224: фрукты
E225: Компот из свежезамороженной ягоды | F225: 180 | G225: 0.02 | H225: 0 | I225: 10.05 | J225: 72.07 | K225: 220 | L225: 32
E226: Пряники сырцовые | F226: 30 | G226: 7.68 | H226: 7.9 | I226: 23.45 | J226: 162.93 | K226: 310 | L226: 18
D227: итого | F227: =SUM(F224:F226) -> 210 | G227: =SUM(G224:G226) -> 7.7 | H227: =SUM(H224:H226) -> 7.9 | I227: =SUM(I224:I226) -> 33.5 | J227: =SUM(J224:J226) -> 235 | L227: =SUM(L224:L226) -> 50
A228: =A216 -> 1 | B228: =B216 -> 6 | C228: Обед | D228: закуска | E228: Икра кабачковая консервированная | F228: 100 | G228: 0.95 | H228: 4.45 | I228: 3.85 | J228: 59.5 | K228: 41.01 | L228: 63.043
D229: 1 блюдо | E229: Борщ с капустой и картофелем на мясном бульоне с фасолью конс. | F229: 210 | G229: 7.8 | H229: =7.46/4*3 -> 5.595 | I229: 3.29 | J229: =168.42/4*3 -> 126.315 | K229: 49.02 | L229: 60.27
D230: 2 блюдо | E230: Котлеты или биточки рыбные с соусом сметанным и сыром | F230: 100 | G230: 5.21 | H230: 5.7 | I230: 16.5 | J230: 184.09 | K230: 151.02 | L230: 97.92
D231: гарнир | E231: Картофельное пюре | F231: 150 | G231: 2.86 | H231: 6.72 | I231: 19.28 | J231: 130.52 | K231: 226 | L231: 28.52
D232: напиток | E232: Компот из свежезам. Ягоды | F232: 180 | G232: 0.19 | H232: 0.48 | I232: 20.7 | J232: 89.01 | K232: 216.05 | L232: 21.85
D233: хлеб бел. | E233: Хлеб пшеничный | F233: 50 | G233: 2.8 | H233: 0.5 | I233: 24.2 | J233: 117 | K233: 299.02 | L233: 7
D234: хлеб черн. | E234: Хлеб ржаной | F234: 50 | G234: 3.3 | H234: 0.45 | I234: 17.1 | J234: 87 | K234: 299.03 | L234: 15
... 304 more rows
